bitfinex/quotes_BTCUSD_20240918
["timestamp","ask_amount","ask_price","bid_price","bid_amount"]
[1726674374516,1.56421017,59498.0,59497.0,0.00082]
[1726674374732,1.19896505,59498.0,59497.0,0.00082]
[1726674374949,1.19396505,59498.0,59497.0,0.00082]
[1726674375170,1.62111005,59498.0,59497.0,0.00082]
[1726674375399,1.62111005,59498.0,59474.0,0.000821]
[1726674375400,0.002,59495.0,59474.0,0.000821]
[1726674375634,1.021332,59479.0,59474.0,0.000821]
[1726674375852,1.18438567,59479.0,59474.0,0.000821]
[1726674376079,1.54839006,59479.0,59474.0,0.000821]
[1726674376314,1.27556256,59479.0,59474.0,0.000821]
[1726674376550,1.30484421,59479.0,59474.0,0.000821]
[1726674377249,1.64109721,59479.0,59474.0,0.000821]
[1726674377903,1.30484421,59479.0,59474.0,0.000821]
[1726674378126,0.98259121,59479.0,59474.0,0.000821]
[1726674378338,1.3052559,59479.0,59474.0,0.000821]
[1726674378567,0.6327499,59479.0,59474.0,0.000821]
[1726674378780,0.93499081,59479.0,59474.0,0.000821]
[1726674379008,0.93499081,59479.0,59478.0,0.1720305]
[1726674379009,0.44908681,59479.0,59478.0,0.1720305]
[1726674379247,0.44908681,59479.0,59478.0,0.0039015]
[1726674379248,0.10533314,59479.0,59478.0,0.0039015]
[1726674379495,0.08685814,59479.0,59478.0,0.90554109]
[1726674379721,0.08685814,59479.0,59478.0,1.1808045]
[1726674379722,0.07633037,59479.0,59478.0,1.1808045]
[1726674379946,0.06740751,59479.0,59478.0,1.1808045]
[1726674380169,0.06740751,59479.0,59478.0,0.8445465]
[1726674380677,0.05340751,59479.0,59478.0,0.8445465]
[1726674380910,0.05340751,59479.0,59478.0,0.0039015]
[1726674380911,0.06640751,59479.0,59478.0,0.0039015]
[1726674381143,1.07562455,59479.0,59478.0,0.0039015]
[1726674381402,1.12482098,59479.0,59478.0,0.0039015]
[1726674381648,1.12782098,59479.0,59478.0,0.0039015]
[1726674381863,0.79156798,59479.0,59478.0,0.0039015]
[1726674382087,0.71239149,59479.0,59478.0,0.0039015]
[1726674382310,0.79155912,59479.0,59478.0,0.0039015]
[1726674382996,0.45530612,59479.0,59478.0,0.0039015]
[1726674383216,0.28418012,59479.0,59478.0,0.0039015]
[1726674383680,0.12112645,59479.0,59478.0,0.0039015]
[1726674383912,0.09155343,59479.0,59478.0,0.1720305]
[1726674384149,0.09155343,59479.0,59478.0,0.0039015]
[1726674384360,0.12112691,59479.0,59478.0,0.0039015]
[1726674384855,0.45930635,59479.0,59478.0,0.0039015]
[1726674385103,0.79555935,59479.0,59478.0,0.0039015]
[1726674385337,0.45930635,59479.0,59478.0,0.0039015]
[1726674385561,0.12812668,59479.0,59478.0,0.5082885]
[1726674385827,0.12812668,59479.0,59478.0,0.0039015]
[1726674386041,0.12112668,59479.0,59478.0,0.1720305]
[1726674386267,0.09455343,59479.0,59478.0,0.8445465]
[1726674386488,0.09455343,59479.0,59478.0,0.5082885]
[1726674386710,0.09455343,59479.0,59478.0,0.8445465]
[1726674386711,0.06404551,59479.0,59478.0,0.8445465]
[1726674386934,0.06404551,59479.0,59478.0,0.5082885]
[1726674387182,0.06404551,59479.0,59478.0,0.8465465]
[1726674387183,0.0535178,59479.0,59478.0,0.8465465]
[1726674387401,0.0535178,59479.0,59478.0,1.2038045]
[1726674387869,0.42027697,59494.0,59490.0,0.168095]
[1726674388106,0.16305367,59493.0,59490.0,0.168095]
[1726674388342,0.16305367,59493.0,59488.0,0.3362]
[1726674388343,0.34025918,59493.0,59488.0,0.3362]
[1726674388565,0.1154144,59492.0,59482.0,0.168116]
[1726674388793,0.168104,59487.0,59483.0,0.168115]
[1726674389040,0.336196,59489.0,59481.0,0.336239]
[1726674389041,0.41306036,59486.0,59482.0,0.168116]
[1726674389262,0.41306036,59486.0,59481.0,0.336239]
[1726674389263,0.08189969,59485.0,59481.0,0.336239]
[1726674389487,0.00918304,59485.0,59484.0,0.73906142]
[1726674389708,0.00918304,59485.0,59484.0,0.40283742]
[1726674389709,0.09121098,59485.0,59484.0,0.40283742]
[1726674389933,0.08202794,59485.0,59484.0,0.40283742]
[1726674390157,0.08202794,59485.0,59484.0,1.41150942]
[1726674390158,0.0912424,59485.0,59484.0,1.41150942]
[1726674390374,0.07287629,59485.0,59484.0,1.41150942]
[1726674390609,0.06366183,59485.0,59484.0,1.41150942]
[1726674391501,0.06366183,59485.0,59484.0,1.07528542]
[1726674391733,0.06366183,59485.0,59484.0,0.73906142]
[1726674391966,0.06366183,59485.0,59484.0,1.07528542]
[1726674392231,0.07287629,59485.0,59484.0,1.07528542]
[1726674392472,0.06366183,59485.0,59484.0,1.07528542]
[1726674392690,0.06566183,59485.0,59484.0,1.07528542]
[1726674393122,0.06366183,59485.0,59484.0,1.07528542]
[1726674393337,0.06466183,59485.0,59484.0,1.07528542]
[1726674394870,0.06366183,59485.0,59484.0,1.07528542]
[1726674395524,0.08184021,59485.0,59484.0,1.07528542]
[1726674396615,0.06366183,59485.0,59484.0,1.07528542]
[1726674397328,0.06348299,59485.0,59484.0,1.41150942]
[1726674397548,0.06348299,59485.0,59484.0,1.07528542]
[1726674397796,0.06348299,59485.0,59484.0,2.10568709]
[1726674398004,0.02036837,59485.0,59484.0,2.29660773]
[1726674398246,0.02036837,59485.0,59484.0,2.19868168]
[1726674398486,0.02036837,59485.0,59484.0,1.79946309]
[1726674398699,0.02036837,59485.0,59484.0,1.80146309]
[1726674398911,0.02036837,59485.0,59484.0,2.13768709]
[1726674399132,0.02036837,59485.0,59484.0,1.60640942]
[1726674399317,0.02036837,59485.0,59484.0,1.53450942]
[1726674400023,0.02136837,59485.0,59484.0,0.505335]
[1726674400239,0.0716039,59485.0,59484.0,0.169111]
[1726674400463,0.0716039,59485.0,59484.0,0.001]
[1726674400464,1.11504016,59485.0,59484.0,0.001]
[1726674400694,0.28385914,59485.0,59484.0,0.001]
[1726674401364,0.17341965,59485.0,59484.0,0.001]
[1726674401585,0.76976167,59485.0,59484.0,0.001]
[1726674401854,0.61908882,59485.0,59478.0,0.0047225]
[1726674402139,0.168122,59481.0,59478.0,0.0047225]
[1726674402403,0.840632,59479.0,59478.0,0.0047225]
[1726674402687,1.45038884,59479.0,59478.0,0.0047225]
[1726674402955,1.45963143,59479.0,59478.0,0.0047225]
[1726674403234,1.89788443,59479.0,59478.0,0.0047225]
[1726674403467,1.276945,59476.0,59475.0,0.00082]
[1726674403735,1.21417884,59476.0,59475.0,0.00082]
[1726674403966,1.12318386,59476.0,59475.0,0.00082]
[1726674404194,0.35862984,59476.0,59475.0,0.00082]
[1726674404419,0.42080764,59476.0,59475.0,0.00082]
[1726674404645,0.75707764,59476.0,59475.0,0.00082]
[1726674404868,0.42080764,59476.0,59475.0,0.00082]
[1726674405097,0.25267264,59476.0,59475.0,0.00082]
[1726674405551,0.25267264,59476.0,59475.0,0.168957]
[1726674405778,0.17205869,59476.0,59475.0,0.00082]
[1726674405992,0.24530044,59476.0,59475.0,0.00082]
[1726674406228,0.26333079,59476.0,59475.0,0.00082]
[1726674406447,0.12912829,59476.0,59475.0,0.00082]
[1726674406662,0.11816151,59476.0,59475.0,0.00082]
[1726674406874,0.44935018,59476.0,59475.0,0.00082]
[1726674407612,0.23432808,59476.0,59475.0,0.00082]
[1726674407835,0.28130239,59476.0,59475.0,0.00082]
[1726674408274,0.28830239,59476.0,59475.0,0.00082]
[1726674408484,0.28130239,59476.0,59475.0,0.00082]
[1726674408745,0.09834145,59476.0,59475.0,0.00082]
[1726674408968,0.03790554,59476.0,59475.0,0.00082]
[1726674409247,0.02890554,59476.0,59475.0,0.00082]
[1726674409467,0.02690052,59476.0,59475.0,0.00082]
[1726674409679,0.02690052,59476.0,59475.0,0.505232]
[1726674409907,0.03587592,59476.0,59475.0,0.841507]
[1726674410123,0.02690052,59476.0,59475.0,1.177782]
[1726674410574,0.02690052,59476.0,59475.0,0.841507]
[1726674411015,0.007,59476.0,59475.0,0.841507]
[1726674411540,0.01958267,59476.0,59475.0,0.168957]
[1726674411842,0.03763712,59476.0,59475.0,0.168957]
[1726674412058,0.03763712,59476.0,59475.0,0.00082]
[1726674412059,0.40922576,59476.0,59475.0,0.00082]
[1726674412289,0.40922576,59476.0,59475.0,0.00182]
[1726674412290,0.24109076,59476.0,59475.0,0.00182]
[1726674413164,0.24109076,59476.0,59475.0,0.00082]
[1726674413394,0.77440102,59476.0,59475.0,0.00082]
[1726674414096,1.11067102,59476.0,59475.0,0.00082]
[1726674414353,0.86580102,59476.0,59475.0,0.00082]
[1726674414607,1.28377808,59476.0,59475.0,0.00082]
[1726674414826,1.25287282,59476.0,59475.0,0.00082]
[1726674415289,1.65240076,59476.0,59475.0,0.00082]
[1726674415505,1.64440076,59476.0,59475.0,0.00082]
[1726674415719,1.64640076,59476.0,59475.0,0.00082]
[1726674415953,1.64140076,59476.0,59475.0,0.00082]
[1726674416165,0.63259076,59476.0,59475.0,0.00082]
[1726674416378,0.96886076,59476.0,59475.0,0.00082]
[1726674416617,0.9269266,59476.0,59475.0,0.00082]
[1726674417488,0.5906566,59476.0,59475.0,0.00082]
[1726674417710,0.58864232,59476.0,59475.0,0.00082]
[1726674418201,0.9329307,59476.0,59475.0,0.00082]
[1726674418425,0.89855247,59476.0,59475.0,0.00082]
[1726674418653,0.90655247,59476.0,59475.0,0.00082]
[1726674419073,0.89855247,59476.0,59475.0,0.00082]
[1726674419348,1.27375047,59476.0,59475.0,0.00082]
[1726674419850,1.26375047,59476.0,59475.0,0.00082]
[1726674420704,1.18529676,59476.0,59475.0,0.00082]
[1726674420918,1.26375022,59476.0,59475.0,0.00082]
[1726674421364,1.60002022,59476.0,59475.0,0.00082]
[1726674421601,1.57114294,59476.0,59475.0,0.00082]
[1726674421840,1.24387294,59476.0,59475.0,0.00082]
[1726674422051,0.56233294,59476.0,59475.0,0.00082]
[1726674422269,0.35462176,59476.0,59475.0,0.00082]
[1726674422475,0.57234305,59476.0,59475.0,0.00082]
[1726674422721,0.89861305,59476.0,59475.0,0.00082]
[1726674422955,0.91261305,59476.0,59475.0,0.00082]
[1726674423197,0.23570805,59476.0,59475.0,0.00082]
[1726674423458,0.20097955,59476.0,59475.0,0.505232]
[1726674423684,0.20097955,59476.0,59475.0,0.168957]
[1726674423685,0.2316435,59476.0,59475.0,0.168957]
[1726674423910,0.26052248,59476.0,59475.0,0.505232]
[1726674424136,0.26052248,59476.0,59475.0,0.841507]
[1726674424137,0.06858983,59476.0,59475.0,0.841507]
[1726674424381,0.06858983,59476.0,59475.0,1.177782]
[1726674424594,0.06858983,59476.0,59475.0,0.841507]
[1726674424595,0.02904682,59476.0,59475.0,0.841507]
[1726674424829,0.02904682,59476.0,59475.0,0.168957]
[1726674425070,0.0495126,59476.0,59475.0,0.00082]
[1726674425318,0.22657631,59476.0,59475.0,0.00082]
[1726674425557,0.73389998,59476.0,59475.0,0.00082]
[1726674425801,0.72589998,59476.0,59475.0,0.00082]
[1726674426054,1.06216998,59476.0,59475.0,0.00082]
[1726674426292,1.23886998,59476.0,59475.0,0.00082]
[1726674426556,1.52462738,59476.0,59475.0,0.00082]
[1726674426801,1.1377896,59476.0,59475.0,0.00082]
[1726674427087,1.1447896,59476.0,59475.0,0.00082]
[1726674427551,0.8085196,59476.0,59475.0,0.00082]
[1726674427981,0.27259661,59476.0,59475.0,0.00082]
[1726674428193,0.31504942,59476.0,59475.0,0.00082]
[1726674428415,0.07629575,59476.0,59475.0,0.00082]
[1726674428627,0.08629575,59476.0,59475.0,0.00082]
[1726674428842,0.07629575,59476.0,59475.0,0.00082]
[1726674429272,0.08629575,59476.0,59475.0,0.00082]
[1726674429482,0.11522251,59476.0,59475.0,0.168957]
[1726674429909,0.01892871,59476.0,59475.0,0.168957]
[1726674430139,0.09668655,59476.0,59475.0,0.168957]
[1726674430354,0.10559129,59476.0,59475.0,0.505232]
[1726674430574,0.07667107,59476.0,59475.0,0.505232]
[1726674431197,0.07667107,59476.0,59475.0,0.00082]
[1726674431434,0.08867107,59476.0,59475.0,0.00082]
[1726674431692,0.75612974,59476.0,59475.0,0.00082]
[1726674431927,1.08039974,59476.0,59475.0,0.00082]
[1726674432136,1.08504174,59476.0,59475.0,0.00082]
[1726674432569,1.08204174,59476.0,59475.0,0.00082]
[1726674432792,1.08904174,59476.0,59475.0,0.00082]
[1726674433235,0.74577174,59476.0,59475.0,0.00082]
[1726674433454,1.08190662,59476.0,59475.0,0.00082]
[1726674434779,1.08890662,59476.0,59475.0,0.00082]
[1726674434993,0.75263662,59476.0,59475.0,0.00082]
[1726674435239,1.08890662,59476.0,59475.0,0.00082]
[1726674435432,0.24823162,59476.0,59475.0,0.00082]
[1726674435649,0.08517795,59476.0,59475.0,0.168957]
[1726674436074,0.10512049,59476.0,59475.0,0.505232]
[1726674436294,0.11402523,59476.0,59475.0,0.841507]
[1726674436519,0.09607513,59476.0,59475.0,0.841507]
[1726674436734,0.10523307,59476.0,59475.0,0.841507]
[1726674437841,0.07633278,59476.0,59475.0,0.841507]
[1726674438060,0.10522933,59476.0,59475.0,0.841507]
[1726674438278,0.10522933,59476.0,59475.0,1.177782]
[1726674438279,0.07633278,59476.0,59475.0,1.177782]
[1726674438724,0.07633278,59476.0,59475.0,0.841507]
[1726674438963,0.06933278,59476.0,59475.0,0.841507]
[1726674439196,0.05134544,59476.0,59475.0,0.841507]
[1726674439425,0.07041563,59476.0,59475.0,0.841507]
[1726674439851,0.07041563,59476.0,59475.0,1.177782]
[1726674439852,0.002642,59476.0,59475.0,1.177782]
[1726674440068,0.07043641,59476.0,59475.0,0.841507]
[1726674440300,0.07043641,59476.0,59475.0,1.36383567]
[1726674440301,0.02175819,59476.0,59475.0,1.36383567]
[1726674440524,0.02175598,59476.0,59475.0,1.52754567]
[1726674440747,0.002642,59476.0,59475.0,1.91416109]
[1726674441178,0.001642,59476.0,59475.0,1.91616109]
[1726674441396,0.002642,59476.0,59475.0,1.91916109]
[1726674441609,0.002642,59476.0,59475.0,1.91716109]
[1726674441864,0.001642,59476.0,59475.0,1.52754567]
[1726674442085,0.001642,59476.0,59475.0,1.53154567]
[1726674442086,0.002642,59476.0,59475.0,1.53154567]
[1726674442590,0.002642,59476.0,59475.0,1.58188609]
[1726674442804,0.002642,59476.0,59475.0,1.54817609]
[1726674443465,0.002642,59476.0,59475.0,1.35512242]
[1726674443702,0.002642,59476.0,59475.0,1.40546285]
[1726674443924,0.002642,59476.0,59475.0,0.172957]
[1726674444165,0.002642,59476.0,59475.0,0.05516466]
[1726674444166,0.02179752,59476.0,59475.0,0.05516466]
[1726674444406,1.07332074,59476.0,59475.0,0.00082]
[1726674444675,1.20386254,59476.0,59475.0,0.00382]
[1726674444942,1.54113254,59476.0,59475.0,0.00382]
[1726674445193,1.64013254,59476.0,59475.0,0.00082]
[1726674445476,1.20486254,59476.0,59475.0,0.00382]
[1726674446039,1.20386254,59476.0,59475.0,0.00082]
[1726674446332,0.86759254,59476.0,59475.0,0.00082]
[1726674446819,1.21808499,59476.0,59475.0,0.00082]
[1726674448132,1.21808499,59476.0,59468.0,0.00082]
[1726674448133,0.266454,59469.0,59468.0,0.00082]
[1726674448422,0.86300907,59469.0,59468.0,0.00082]
[1726674448673,1.20815611,59469.0,59468.0,0.00082]
[1726674448941,0.20433044,59469.0,59468.0,0.00082]
[1726674449187,0.168159,59468.0,59461.0,0.38673395]
[1726674449432,0.0971924,59467.0,59464.0,0.168167]
[1726674449668,0.23628924,59466.0,59461.0,0.05038295]
[1726674449905,0.06812624,59465.0,59463.0,0.16817]
[1726674450271,0.06805476,59464.0,59461.0,0.38673595]
[1726674450454,0.07688974,59464.0,59461.0,0.55491095]
[1726674450708,0.06805476,59463.0,59462.0,0.168174]
[1726674450998,0.06805476,59463.0,59461.0,0.05038295]
[1726674450999,0.168174,59462.0,59461.0,0.05038295]
[1726674451228,0.73561006,59462.0,59461.0,0.05038295]
[1726674451464,0.38992607,59462.0,59461.0,0.05038295]
[1726674451703,0.35922551,59462.0,59461.0,0.05038295]
[1726674451966,0.168177,59461.0,59460.0,0.0039015]
[1726674452227,0.23633647,59461.0,59460.0,0.0039015]
[1726674452487,0.57269047,59461.0,59460.0,0.0039015]
[1726674452729,1.08090813,59461.0,59460.0,0.0039015]
[1726674452984,0.74455413,59461.0,59460.0,0.0039015]
[1726674453963,0.74455413,59461.0,59450.0,0.04424429]
[1726674453964,0.49399579,59461.0,59450.0,0.04424429]
[1726674453973,0.84114,59443.0,59442.0,0.0039015]
[1726674454209,1.35990206,59443.0,59442.0,0.0039015]
[1726674454452,0.07704691,59443.0,59442.0,0.1721325]
[1726674454726,0.39010808,59443.0,59442.0,0.0039015]
[1726674455003,0.73581642,59443.0,59442.0,0.0039015]
[1726674455255,0.74458661,59443.0,59442.0,0.0039015]
[1726674455762,1.08104261,59443.0,59442.0,0.0039015]
[1726674456008,0.74458661,59443.0,59442.0,0.0039015]
[1726674456273,0.37330425,59443.0,59442.0,0.0039015]
[1726674457045,0.69050786,59443.0,59442.0,0.0039015]
[1726674457298,0.70969135,59443.0,59442.0,0.0039015]
[1726674457567,0.70969135,59443.0,59442.0,0.8450565]
[1726674457568,0.02277019,59443.0,59442.0,0.8450565]
[1726674458028,0.336386,59456.0,59449.0,0.168211]
[1726674458279,0.168201,59453.0,59442.0,0.0039015]
[1726674458518,0.01917104,59452.0,59449.0,0.16821]
[1726674458757,0.02783716,59451.0,59450.0,0.168208]
[1726674458995,0.00866612,59451.0,59450.0,0.504625]
[1726674459243,0.00866612,59451.0,59450.0,0.841042]
[1726674459500,0.001642,59464.0,59453.0,0.336396]
[1726674459777,0.168183,59459.0,59447.0,0.336432]
[1726674460049,0.20452083,59458.0,59447.0,0.168215]
[1726674460335,0.00840743,59463.0,59442.0,0.0047225]
[1726674460336,0.1,59454.0,59442.0,0.0047225]
[1726674460592,0.33644,59446.0,59442.0,0.0047225]
[1726674460824,0.18112316,59453.0,59442.0,0.0047225]
[1726674460825,0.23950553,59453.0,59442.0,0.0047225]
[1726674461077,0.336442,59446.0,59442.0,0.0047225]
[1726674461345,0.1822748,59445.0,59442.0,0.0047225]
[1726674461594,0.168228,59443.0,59442.0,0.0047225]
[1726674461814,0.01922113,59443.0,59442.0,0.0047225]
[1726674462065,0.17663343,59444.0,59442.0,0.0047225]
[1726674462066,0.168226,59444.0,59442.0,0.0047225]
[1726674462331,0.00840743,59443.0,59442.0,0.0047225]
[1726674462915,0.3396891,59443.0,59442.0,0.0047225]
[1726674463096,0.68696761,59443.0,59442.0,0.0047225]
[1726674463326,0.67603467,59443.0,59442.0,0.0047225]
[1726674464074,0.008297,59443.0,59442.0,0.1729535]
[1726674464548,0.008297,59443.0,59442.0,0.5094155]
[1726674464818,0.33639,59455.0,59445.0,0.336444]
[1726674465136,0.01923229,59454.0,59448.0,0.23493074]
[1726674465403,0.001642,59464.0,59453.0,0.3364]
[1726674465404,0.16305367,59462.0,59453.0,0.3364]
[1726674465641,0.16305367,59462.0,59448.0,0.23493074]
[1726674465642,0.01919292,59461.0,59459.0,0.168181]
[1726674465906,0.18224659,59460.0,59458.0,0.168183]
[1726674466165,0.001642,59464.0,59448.0,0.23493074]
[1726674466452,0.001642,59464.0,59454.0,0.168197]
[1726674466453,0.014,59455.0,59454.0,0.168197]
[1726674466703,0.168184,59459.0,59455.0,0.168193]
[1726674466958,0.49940167,59463.0,59455.0,0.168193]
[1726674466959,0.49940167,59463.0,59457.0,0.168188]
[1726674467219,0.49940167,59463.0,59458.0,0.168185]
[1726674467220,0.18741126,59462.0,59458.0,0.168185]
[1726674467453,0.18228897,59461.0,59458.0,0.168185]
[1726674467695,0.16305367,59461.0,59449.0,0.336422]
[1726674467979,0.16305367,59461.0,59447.0,0.336432]
[1726674467980,0.01925494,59460.0,59447.0,0.336432]
[1726674468209,0.168186,59458.0,59454.0,0.168195]
[1726674468446,0.35049661,59457.0,59453.0,0.1682]
[1726674468693,0.16305367,59457.0,59456.0,0.168191]
[1726674469180,0.011,59461.0,59460.0,0.50454]
[1726674469434,0.17405367,59461.0,59460.0,0.50454]
[1726674469697,0.1932672,59461.0,59460.0,0.16818]
[1726674469952,0.1822672,59461.0,59457.0,0.336377]
[1726674470248,0.169811,59464.0,59451.0,0.336409]
[1726674470249,0.1822672,59460.0,59451.0,0.336409]
[1726674470481,0.1822672,59460.0,59455.0,0.168191]
[1726674470482,0.004,59457.0,59455.0,0.168191]
[1726674470729,0.004,59457.0,59456.0,0.168191]
[1726674471199,0.02318787,59457.0,59456.0,0.168191]
[1726674471459,0.02318787,59457.0,59454.0,0.336393]
[1726674471460,0.02318787,59457.0,59454.0,0.168195]
[1726674471707,0.01918787,59456.0,59454.0,0.168195]
[1726674471939,0.168186,59458.0,59454.0,0.168195]
[1726674472189,0.01921203,59457.0,59455.0,0.168193]
[1726674472437,0.01921203,59456.0,59455.0,0.168194]
[1726674472926,0.01921203,59456.0,59455.0,1.07590074]
[1726674473176,0.00164,59462.0,59461.0,0.504531]
[1726674473487,0.00164,59462.0,59461.0,1.41216974]
[1726674476375,0.00164,59462.0,59461.0,1.41716974]
[1726674476907,0.00264,59462.0,59461.0,2.04157741]
[1726674477137,0.00164,59462.0,59461.0,2.06657741]
[1726674477366,0.00164,59462.0,59461.0,1.83164667]
[1726674477595,0.00264,59462.0,59461.0,1.83664667]
[1726674477827,0.001642,59476.0,59470.0,0.023]
[1726674477828,0.001542,59476.0,59470.0,0.023]
[1726674478059,0.2538188,59476.0,59475.0,0.73934274]
[1726674478317,0.001542,59476.0,59475.0,1.41189274]
[1726674478547,0.01023538,59476.0,59475.0,1.41189274]
[1726674478776,0.001542,59476.0,59475.0,1.41189274]
[1726674480211,0.001542,59476.0,59475.0,1.07561774]
[1726674480449,0.001542,59476.0,59475.0,0.003]
[1726674480687,0.02074528,59476.0,59475.0,0.171137]
[1726674480922,0.01062072,59476.0,59475.0,0.504412]
[1726674481148,0.06054501,59476.0,59475.0,1.41189274]
[1726674481380,0.001542,59476.0,59475.0,1.41189274]
[1726674482819,0.001642,59478.0,59477.0,1.331924]
[1726674483054,0.001642,59478.0,59477.0,1.83124167]
[1726674483285,0.001642,59478.0,59477.0,2.16750567]
[1726674483526,0.001642,59478.0,59477.0,3.43107367]
[1726674483791,0.03072495,59484.0,59483.0,1.543035]
[1726674484046,0.03062495,59484.0,59483.0,0.840575]
[1726674484291,0.03062495,59484.0,59483.0,1.176805]
[1726674484985,0.03062495,59484.0,59483.0,0.840575]
[1726674485242,0.03062495,59484.0,59483.0,0.863575]
[1726674485476,0.03062495,59484.0,59483.0,1.36285867]
[1726674485698,0.03062495,59484.0,59483.0,1.49285867]
[1726674485939,0.03062495,59484.0,59483.0,1.82908867]
[1726674486181,0.03052495,59484.0,59483.0,1.83108867]
[1726674486430,0.03052495,59484.0,59483.0,1.92508867]
[1726674486660,0.03052495,59484.0,59483.0,1.92708867]
[1726674486885,0.03052495,59484.0,59483.0,2.56497167]
[1726674487123,0.03052495,59484.0,59483.0,2.56297167]
[1726674487355,0.03152495,59484.0,59483.0,2.57097167]
[1726674488267,0.03052495,59484.0,59483.0,2.56297167]
[1726674488564,0.03052495,59484.0,59483.0,2.54306167]
[1726674488792,0.001642,59497.0,59496.0,1.41147974]
[1726674489030,0.001542,59497.0,59496.0,1.93369041]
[1726674489497,0.001542,59497.0,59496.0,1.59753341]
[1726674490195,0.001542,59497.0,59496.0,0.504235]
[1726674490434,0.001542,59497.0,59496.0,0.508235]
[1726674490672,0.001542,59497.0,59496.0,0.844392]
[1726674490895,0.001542,59497.0,59496.0,0.508235]
[1726674491358,0.001542,59497.0,59496.0,0.168078]
[1726674491586,0.001542,59497.0,59496.0,0.74016574]
[1726674491587,0.007542,59497.0,59496.0,0.74016574]
[1726674491811,0.007542,59497.0,59496.0,1.09932274]
[1726674493020,0.007542,59497.0,59496.0,1.43547974]
[1726674493267,0.007542,59497.0,59496.0,1.59853341]
[1726674493502,0.001542,59497.0,59496.0,1.59753341]
[1726674493959,0.003542,59497.0,59496.0,1.59753341]
[1726674494186,0.003542,59497.0,59496.0,1.72753341]
[1726674494187,0.001542,59497.0,59496.0,1.72753341]
[1726674494432,0.001442,59497.0,59496.0,2.73252041]
[1726674494663,0.0039015,59505.0,59504.0,1.229388]
[1726674494955,0.0039015,59505.0,59504.0,1.96348341]
[1726674495428,0.0039015,59505.0,59504.0,2.10785801]
[1726674495666,0.0038015,59505.0,59504.0,3.71931896]
[1726674495896,0.0038015,59505.0,59504.0,4.01305536]
[1726674496350,0.0038015,59505.0,59504.0,3.86970936]
[1726674496829,0.0038015,59505.0,59504.0,3.84557396]
[1726674497065,0.0037015,59505.0,59504.0,3.50946296]
[1726674497289,0.0037015,59505.0,59504.0,3.50046296]
[1726674497518,0.0037015,59505.0,59504.0,3.51446296]
[1726674497748,0.0055415,59522.0,59521.0,0.840037]
[1726674497984,0.0055415,59522.0,59521.0,1.07496774]
[1726674498224,0.01518062,59522.0,59521.0,1.11934234]
[1726674498471,0.0055415,59522.0,59521.0,1.59703641]
[1726674498727,0.0055415,59522.0,59521.0,1.77141101]
[1726674498956,0.0055415,59522.0,59521.0,1.53848027]
[1726674499193,0.0055415,59522.0,59521.0,2.40469027]
[1726674499194,0.0054415,59522.0,59521.0,2.40469027]
[1726674499428,0.0054415,59522.0,59521.0,2.06667527]
[1726674499675,0.0054415,59522.0,59521.0,1.82615332]
[1726674500137,0.0054415,59522.0,59521.0,1.80936332]
[1726674500610,0.0054415,59522.0,59521.0,1.81136332]
[1726674500838,0.0054415,59522.0,59521.0,2.14737832]
[1726674501074,0.0054415,59522.0,59521.0,1.61638232]
[1726674501348,0.0054415,59522.0,59521.0,1.78450032]
[1726674501805,0.0054415,59522.0,59521.0,1.79450032]
[1726674502039,0.0054415,59522.0,59521.0,1.56200772]
[1726674502745,0.0054415,59522.0,59521.0,1.60638232]
[1726674503453,0.0053415,59522.0,59521.0,1.61538232]
[1726674503702,0.0053415,59522.0,59521.0,0.6483966]
[1726674503934,0.0053415,59522.0,59521.0,0.604022]
[1726674504161,0.0053415,59522.0,59521.0,0.949037]
[1726674504616,0.0053415,59522.0,59521.0,1.47810567]
[1726674505069,0.0053415,59522.0,59521.0,1.50110567]
[1726674505301,0.0053415,59522.0,59521.0,1.49210567]
[1726674505540,0.0053415,59522.0,59521.0,1.276052]
[1726674505778,0.0053415,59522.0,59521.0,0.604022]
[1726674506003,0.0053415,59522.0,59521.0,0.268007]
[1726674506250,0.0053415,59522.0,59521.0,0.940037]
[1726674506938,0.0053415,59522.0,59521.0,1.276052]
[1726674507176,0.0053415,59522.0,59521.0,1.46910567]
[1726674507461,0.0053415,59522.0,59521.0,1.49910567]
[1726674507724,0.0053415,59522.0,59521.0,1.83512067]
[1726674507964,0.0053415,59522.0,59521.0,1.88218693]
[1726674508197,0.0053415,59522.0,59521.0,1.82812067]
[1726674508423,0.0053415,59522.0,59521.0,1.84526359]
[1726674508653,0.0053415,59522.0,59521.0,1.89232985]
[1726674509134,0.0053415,59522.0,59521.0,1.46910567]
[1726674510726,0.0053415,59522.0,59521.0,1.46210567]
[1726674510968,0.0053415,59522.0,59521.0,1.46910567]
[1726674511483,0.00164,59524.0,59523.0,1.176014]
[1726674511714,0.00164,59524.0,59523.0,1.46206767]
[1726674512168,0.00158,59524.0,59523.0,1.46206767]
[1726674512411,0.00158,59524.0,59523.0,1.79807167]
[1726674512655,0.00158,59524.0,59523.0,1.83007167]
[1726674512891,0.00158,59524.0,59523.0,3.39579367]
[1726674513136,0.00158,59524.0,59523.0,0.84001]
[1726674513867,0.00158,59524.0,59522.0,0.168004]
[1726674514084,0.00158,59524.0,59523.0,0.173002]
[1726674514363,0.00158,59524.0,59523.0,0.005]
[1726674514594,0.00158,59524.0,59523.0,0.173002]
[1726674514834,0.01920241,59524.0,59523.0,0.173002]
[1726674515054,0.01920241,59524.0,59523.0,0.504006]
[1726674515300,0.01920241,59524.0,59523.0,0.168002]
[1726674515526,0.01920241,59524.0,59522.0,0.004]
[1726674515767,0.18562541,59523.0,59516.0,0.336038]
[1726674516007,0.01762241,59522.0,59515.0,0.23493074]
[1726674516241,0.01762241,59522.0,59521.0,0.504022]
[1726674516472,0.00158,59524.0,59521.0,0.168007]
[1726674516700,0.01764843,59523.0,59522.0,0.168005]
[1726674516935,0.01764843,59523.0,59522.0,0.504015]
[1726674517171,0.01764843,59523.0,59522.0,0.840025]
[1726674517403,0.00158,59524.0,59522.0,0.840025]
[1726674517404,0.00158,59524.0,59523.0,0.168002]
[1726674517637,0.00158,59524.0,59523.0,0.84001]
[1726674518827,0.00158,59524.0,59523.0,0.504006]
[1726674519748,0.01927539,59524.0,59523.0,0.504006]
[1726674519972,0.01927539,59524.0,59523.0,0.84001]
[1726674520705,0.01927539,59524.0,59523.0,0.504825]
[1726674521190,0.02946103,59524.0,59523.0,0.844829]
[1726674521421,0.02946103,59524.0,59523.0,0.840829]
[1726674521651,0.01922892,59524.0,59523.0,0.840829]
[1726674521878,0.00158,59524.0,59523.0,1.176833]